bitfinex/quotes_BTCUSD_20241111
["timestamp","ask_amount","ask_price","bid_price","bid_amount"]
[1731303936342,0.000701,80820.0,80819.0,0.28923461]
[1731303936759,0.000701,80820.0,80819.0,0.28970872]
[1731303936964,0.000701,80820.0,80819.0,0.28923461]
[1731303937171,0.000701,80820.0,80819.0,0.41765094]
[1731303937413,0.000701,80820.0,80819.0,0.49147682]
[1731303937632,0.000701,80820.0,80819.0,0.48947682]
[1731303938907,0.000701,80820.0,80819.0,0.49147682]
[1731303939613,0.000701,80820.0,80819.0,0.17726814]
[1731303939815,0.000701,80820.0,80819.0,0.10096814]
[1731303940039,0.000701,80820.0,80819.0,0.098986]
[1731303940649,0.000701,80820.0,80813.0,0.00061919]
[1731303940650,0.000701,80820.0,80817.0,0.098988]
[1731303940864,0.000701,80820.0,80800.0,0.00136295]
[1731303941091,0.00438081,80812.0,80806.0,0.18415641]
[1731303941336,0.00363705,80811.0,80806.0,0.18415641]
[1731303941753,0.1289,80814.0,80794.0,0.1856176]
[1731303941754,0.00438081,80813.0,80807.0,0.18415641]
[1731303941963,0.1289,80814.0,80813.0,0.098993]
[1731303942411,0.00363705,80813.0,80801.0,0.00061919]
[1731303942660,0.00363705,80813.0,80804.0,0.18415641]
[1731303942866,0.00363705,80813.0,80794.0,0.18636136]
[1731303942867,0.00363705,80813.0,80802.0,0.198014]
[1731303943060,0.098995,80812.0,80800.0,0.099009]
[1731303943268,0.00363705,80809.0,80794.0,0.1856176]
[1731303943696,0.00363705,80809.0,80803.0,0.099005]
[1731303943867,0.00363705,80809.0,80797.0,0.198027]
[1731303944076,0.00363705,80809.0,80801.0,0.099007]
[1731303944294,0.00363705,80809.0,80803.0,0.099006]
[1731303944501,0.00363705,80810.0,80804.0,0.198008]
[1731303944743,0.00438081,80812.0,80809.0,0.098998]
[1731303944931,0.1289,80814.0,80813.0,0.098993]
[1731303946769,0.1289,80814.0,80806.0,0.198005]
[1731303946960,0.1289,80814.0,80803.0,0.18415641]
[1731303947255,0.00363705,80809.0,80804.0,0.18415641]
[1731303947664,0.00363705,80809.0,80797.0,0.099013]
[1731303948026,0.00363705,80809.0,80796.0,0.198029]
[1731303948523,0.00363705,80809.0,80799.0,0.198021]
[1731303948728,0.00363705,80809.0,80794.0,0.1856176]
[1731303949153,0.00363705,80809.0,80806.0,0.099001]
[1731303949353,0.00363705,80809.0,80807.0,0.099]
[1731303949581,0.1289,80814.0,80813.0,0.098993]
[1731303949717,0.081,80814.0,80813.0,0.098993]
[1731303950133,0.00508181,80820.0,80811.0,0.197991]
[1731303950345,8.181e-05,80820.0,80817.0,0.098988]
[1731303950557,0.0774,80822.0,80820.0,0.098985]
[1731303950746,0.0491,80823.0,80820.0,0.098985]
[1731303950947,0.00363705,80829.0,80820.0,0.098985]
[1731303951141,0.078084,80830.0,80820.0,0.098985]
[1731303951575,0.078084,80830.0,80820.0,0.10145935]
[1731303951790,0.078084,80830.0,80820.0,0.098985]
[1731303951998,0.07816581,80830.0,80820.0,0.098985]
[1731303952231,0.078084,80830.0,80820.0,0.10145931]
[1731303952434,0.001684,80830.0,80820.0,0.10034795]
[1731303953229,0.001684,80830.0,80820.0,0.10282208]
[1731303953997,0.001684,80830.0,80820.0,0.22876429]
[1731303954194,0.001684,80830.0,80820.0,0.23120835]
[1731303954393,0.001684,80830.0,80820.0,0.10526614]
[1731303955388,0.001684,80830.0,80820.0,0.10774021]
[1731303955590,0.001684,80830.0,80820.0,0.10390319]
[1731303955996,0.001684,80830.0,80820.0,0.10974036]
[1731303956200,0.001684,80830.0,80820.0,0.10726614]
[1731303956489,0.001684,80830.0,80820.0,0.10974019]
[1731303956685,0.001684,80830.0,80820.0,0.2356824]
[1731303956837,0.001684,80830.0,80820.0,0.23320835]
[1731303957078,0.001684,80830.0,80820.0,0.33568237]
[1731303957265,0.001684,80830.0,80820.0,0.33320835]
[1731303958118,0.001684,80830.0,80820.0,0.37167821]
[1731303959344,0.001684,80830.0,80820.0,0.39467821]
[1731303959550,0.001684,80830.0,80829.0,0.20525514]
[1731303959757,0.001684,80830.0,80829.0,0.52193748]
[1731303959963,0.001684,80830.0,80829.0,0.55791508]
[1731303960409,0.001684,80830.0,80829.0,0.74418155]
[1731303960835,0.000701,80834.0,80833.0,0.20725014]
[1731303961038,0.000701,80834.0,80833.0,0.37411717]
[1731303961245,0.000701,80834.0,80833.0,0.37164361]
[1731303962064,0.0497,80865.0,80833.0,0.37164361]
[1731303962065,0.00078281,80875.0,80842.0,0.00691819]
[1731303962270,0.00078281,80875.0,80848.0,0.23023214]
[1731303962271,0.18415641,80857.0,80848.0,0.23023214]
[1731303962525,0.18415641,80857.0,80848.0,0.35617435]
[1731303962751,0.18415641,80868.0,80848.0,0.42762316]
[1731303963874,0.18415641,80868.0,80858.0,0.00828114]
[1731303964091,0.18415641,80868.0,80858.0,0.41942782]
[1731303964300,0.000701,80875.0,80858.0,0.41942782]
[1731303964529,0.000701,80875.0,80858.0,0.4535047]
[1731303964761,0.000701,80875.0,80858.0,0.41742782]
[1731303965101,0.000701,80875.0,80858.0,0.29148561]
[1731303965515,0.08,80864.0,80858.0,0.2978873]
[1731303966074,0.00433805,80875.0,80858.0,0.42382951]
[1731303966075,0.08,80873.0,80858.0,0.42382951]
[1731303966209,0.18415641,80872.0,80858.0,0.11162083]
[1731303966411,0.08,80873.0,80858.0,0.11162083]
[1731303967627,0.08,80873.0,80858.0,0.24092599]
[1731303968672,0.000701,80875.0,80858.0,0.24339884]
[1731303969529,0.000701,80875.0,80858.0,0.32069884]
[1731303969830,0.000701,80875.0,80858.0,0.3524386]
[1731303969997,0.000701,80875.0,80858.0,0.56170507]
[1731303970217,0.000701,80875.0,80858.0,0.52749246]
[1731303970468,0.000701,80875.0,80858.0,0.34122599]
[1731303970664,0.000701,80875.0,80858.0,0.44122599]
[1731303970831,0.000701,80875.0,80858.0,0.7171425]
[1731303971708,0.18485741,80875.0,80858.0,0.7171425]
[1731303973339,0.000701,80875.0,80858.0,0.71905544]
[1731303973723,0.000701,80875.0,80874.0,0.10028195]
[1731303973874,0.000701,80875.0,80874.0,0.22622416]
[1731303974093,0.000701,80875.0,80874.0,0.098919]
[1731303974887,0.000701,80875.0,80874.0,0.10028195]
[1731303975105,0.000701,80875.0,80874.0,0.10520014]
[1731303975311,0.000701,80875.0,80874.0,0.33114235]
[1731303975514,0.000701,80875.0,80874.0,0.20383719]
[1731303976349,0.000701,80875.0,80874.0,0.20583719]
[1731303976551,0.000701,80875.0,80874.0,0.20830972]
[1731303976764,0.000701,80875.0,80874.0,0.20383719]
[1731303979811,0.000701,80875.0,80874.0,0.198919]
[1731303980042,0.000701,80875.0,80874.0,0.098919]
[1731303980255,0.000701,80875.0,80874.0,0.20383719]
[1731303980707,0.000701,80875.0,80874.0,0.33114235]
[1731303981342,0.000701,80875.0,80874.0,0.33314235]
[1731303982278,0.000701,80875.0,80874.0,0.35614235]
[1731303983415,0.5,80888.0,80887.0,0.48310065]
[1731303983616,0.5,80888.0,80887.0,0.60904286]
[1731303984888,0.5,80888.0,80887.0,0.60704286]
[1731303985310,0.5,80888.0,80887.0,0.60904286]
[1731303985544,0.5,80888.0,80887.0,0.60704286]
[1731303987512,0.5,80888.0,80887.0,0.61483725]
[1731303987972,0.5,80888.0,80887.0,0.61949113]
[1731303988126,0.5,80888.0,80887.0,0.61483725]
[1731303988750,0.425,80888.0,80887.0,0.61483725]
[1731303989966,0.425,80888.0,80887.0,0.61683725]
[1731303990385,0.425,80888.0,80887.0,0.61483725]
[1731303990600,0.425,80888.0,80887.0,0.61683725]
[1731303990765,0.425,80888.0,80887.0,0.61483725]
[1731303990971,0.425,80888.0,80887.0,0.52444386]
[1731303991559,0.425,80888.0,80887.0,0.3971387]
[1731303991560,0.5009,80888.0,80887.0,0.3971387]
[1731303991745,0.5009,80888.0,80887.0,0.10669739]
[1731303991943,0.5009,80888.0,80887.0,0.098903]
[1731303992354,0.5009,80888.0,80879.0,0.00778994]
[1731303992651,0.5009,80888.0,80876.0,0.00136295]
[1731303992652,0.5009,80888.0,80887.0,0.098903]
[1731303994900,0.5009,80888.0,80887.0,0.10674851]
[1731303995356,0.5009,80888.0,80887.0,0.098903]
[1731303996970,0.5009,80888.0,80883.0,0.197816]
[1731303996971,0.5009,80888.0,80885.0,0.098905]
[1731303997354,0.5009,80888.0,80886.0,0.098904]
[1731303997563,0.5009,80888.0,80879.0,0.2054717]
[1731303997767,0.5009,80888.0,80887.0,0.098903]
[1731303998181,0.5009,80888.0,80886.0,0.098904]
[1731303998556,0.5009,80888.0,80884.0,0.197814]
[1731303998557,0.5009,80888.0,80885.0,0.098905]
[1731303998754,0.5009,80888.0,80886.0,0.098904]
[1731303998963,0.5009,80888.0,80887.0,0.000841]
[1731303999162,0.648984,80888.0,80887.0,0.000841]
[1731303999569,0.550082,80888.0,80887.0,0.000841]
[1731304000172,0.550082,80888.0,80887.0,0.099744]
[1731304000981,0.426682,80888.0,80887.0,0.099744]
[1731304003069,0.557482,80888.0,80887.0,0.000841]
[1731304003677,0.557482,80888.0,80887.0,0.099744]
[1731304004881,0.509482,80888.0,80887.0,0.099744]
[1731304005123,0.426682,80888.0,80887.0,0.099744]
[1731304009334,0.65652105,80888.0,80887.0,0.000841]
[1731304011264,0.55761905,80888.0,80887.0,0.000841]
[1731304011765,0.55761905,80888.0,80887.0,0.099744]
[1731304012139,0.553982,80888.0,80887.0,0.099744]
[1731304013152,0.508882,80888.0,80887.0,0.10176746]
[1731304013372,0.426682,80888.0,80887.0,0.099744]
[1731304018400,0.426682,80888.0,80887.0,0.22568621]
[1731304018780,0.426682,80888.0,80887.0,0.22768621]
[1731304019090,0.426682,80888.0,80887.0,0.22568621]
[1731304019542,0.426682,80888.0,80887.0,0.22704916]
[1731304019752,0.426682,80888.0,80887.0,0.22568621]
[1731304020725,0.42504151,80888.0,80887.0,0.22568621]
[1731304022108,0.42504151,80888.0,80887.0,0.22768621]
[1731304022313,0.42504151,80888.0,80887.0,0.22568621]
[1731304023764,0.42504151,80888.0,80887.0,0.22768621]
[1731304023966,0.42504151,80888.0,80887.0,0.22568621]
[1731304028515,0.42504151,80888.0,80887.0,0.099744]
[1731304028771,0.50374151,80888.0,80887.0,0.099744]
[1731304030286,0.50374151,80888.0,80887.0,0.000841]
[1731304030912,0.50746037,80888.0,80887.0,0.000841]
[1731304031288,0.60636237,80888.0,80887.0,0.000841]
[1731304031412,0.60636237,80888.0,80887.0,0.099744]
[1731304031413,0.55616037,80888.0,80887.0,0.099744]
[1731304032075,0.55244151,80888.0,80887.0,0.099744]
[1731304033062,0.42504151,80888.0,80887.0,0.099744]
[1731304033480,0.42504151,80888.0,80887.0,0.10739052]
[1731304034305,0.42504151,80888.0,80887.0,0.099744]
[1731304035385,0.47044151,80888.0,80887.0,0.000841]
[1731304035652,0.54974151,80888.0,80887.0,0.000841]
[1731304035791,0.65236237,80888.0,80887.0,0.000841]
[1731304036220,0.55346037,80888.0,80887.0,0.000841]
[1731304037678,0.55337856,80888.0,80887.0,0.000841]
[1731304037882,0.55346037,80888.0,80887.0,0.099744]
[1731304038747,0.55346037,80888.0,80887.0,0.000841]
[1731304039115,0.55346037,80888.0,80887.0,0.099744]
[1731304039516,0.54982332,80888.0,80887.0,0.099744]
[1731304039744,0.54974151,80888.0,80887.0,0.099744]
[1731304039950,0.54982332,80888.0,80887.0,0.099744]
[1731304040212,0.54974151,80888.0,80887.0,0.099744]
[1731304041883,0.42504151,80888.0,80887.0,0.099744]
[1731304049781,0.78510458,80888.0,80887.0,0.000841]
[1731304052027,0.00363705,80874.0,80873.0,0.18415641]
[1731304052268,0.12903705,80874.0,80873.0,0.18415641]
[1731304052457,0.12903705,80874.0,80873.0,0.28307641]
[1731304052657,0.12911886,80874.0,80873.0,0.09892]
[1731304052822,0.12911886,80874.0,80864.0,0.38201841]
[1731304053026,8.181e-05,80872.0,80868.0,0.098926]
[1731304053225,8.181e-05,80870.0,80868.0,0.098926]
[1731304053449,8.181e-05,80870.0,80859.0,0.00846169]
[1731304053450,8.181e-05,80870.0,80866.0,0.098928]
[1731304053652,8.181e-05,80870.0,80869.0,0.098925]
[1731304054066,8.181e-05,80870.0,80867.0,0.098927]
[1731304054285,8.181e-05,80870.0,80869.0,0.098925]
[1731304054462,8.181e-05,80870.0,80861.0,0.197869]
[1731304054664,8.181e-05,80870.0,80864.0,0.18415641]
[1731304054872,8.181e-05,80870.0,80867.0,0.098926]
[1731304055217,8.181e-05,80870.0,80866.0,0.197858]
[1731304055438,8.181e-05,80870.0,80868.0,0.098925]
[1731304055793,8.181e-05,80870.0,80869.0,0.098924]
[1731304056047,0.00371886,80870.0,80869.0,0.098924]
[1731304056416,8.181e-05,80870.0,80869.0,0.098924]
[1731304056616,0.00371886,80870.0,80869.0,0.098925]
[1731304057629,0.00363705,80873.0,80868.0,0.098926]
[1731304057839,8.181e-05,80870.0,80869.0,0.098924]
[1731304058013,8.181e-05,80870.0,80867.0,0.197855]
[1731304058014,8.181e-05,80870.0,80867.0,0.098927]
[1731304058216,8.181e-05,80870.0,80868.0,0.098926]
[1731304059931,8.181e-05,80870.0,80862.0,0.197867]
[1731304060149,8.181e-05,80870.0,80867.0,0.098927]
[1731304060361,0.174834,80862.0,80859.0,0.000841]
[1731304060566,0.00363705,80861.0,80860.0,0.18415641]
[1731304061157,0.00363705,80861.0,80859.0,0.099778]
[1731304061556,0.00363705,80861.0,80860.0,0.098936]
[1731304061770,0.12733705,80862.0,80861.0,0.098935]
[1731304064536,0.1237,80862.0,80861.0,0.098935]
[1731304064667,0.07958181,80868.0,80859.0,0.18499741]
[1731304065037,0.08321886,80868.0,80867.0,0.098927]
[1731304065562,0.07958181,80868.0,80867.0,0.098927]
[1731304065757,0.08321886,80868.0,80867.0,0.098927]
[1731304066275,0.0795,80868.0,80867.0,0.098927]
[1731304066649,0.0808,80873.0,80872.0,0.098921]
[1731304066853,0.08088181,80873.0,80872.0,0.098921]
[1731304067269,0.08088181,80873.0,80867.0,0.197855]
[1731304067494,0.08088181,80873.0,80866.0,0.098929]
[1731304067495,0.00363705,80867.0,80866.0,0.098929]
[1731304067921,0.00363705,80867.0,80864.0,0.197861]
[1731304068257,8.181e-05,80870.0,80869.0,0.098925]
[1731304068441,0.00371886,80870.0,80869.0,0.098925]
[1731304069004,0.00371886,80870.0,80865.0,0.19786]
[1731304069005,0.00371886,80870.0,80867.0,0.098927]
[1731304069593,8.181e-05,80869.0,80867.0,0.098927]
[1731304069977,8.181e-05,80869.0,80865.0,0.19786]
[1731304069978,8.181e-05,80869.0,80866.0,0.098928]
[1731304070299,8.181e-05,80869.0,80859.0,0.00868483]
[1731304070300,0.10256505,80867.0,80859.0,0.00868483]
[1731304070505,0.00363705,80867.0,80864.0,0.09893]
[1731304070630,0.00363705,80867.0,80865.0,0.09893]
[1731304070837,0.00363705,80866.0,80862.0,0.098933]
[1731304071034,0.0478,80864.0,80859.0,0.000841]
[1731304071270,0.00363705,80861.0,80860.0,0.098936]
[1731304072574,0.0478,80864.0,80863.0,0.098932]
[1731304072790,8.181e-05,80869.0,80865.0,0.09893]
[1731304072791,0.00363705,80866.0,80865.0,0.09893]
[1731304075710,8.181e-05,80869.0,80868.0,0.098926]
[1731304077050,8.181e-05,80871.0,80870.0,0.098924]
[1731304077191,0.0478,80872.0,80871.0,0.098922]
[1731304078178,0.0808,80873.0,80869.0,0.19785]
[1731304078421,0.08271886,80879.0,80878.0,0.098914]
[1731304078635,0.079,80879.0,80878.0,0.098914]
[1731304078859,0.47154151,80888.0,80877.0,0.00447262]
[1731304079010,0.42504151,80888.0,80887.0,0.098903]
[1731304079419,0.00363705,80877.0,80876.0,0.00782558]
[1731304079623,0.00363705,80877.0,80861.0,0.18415641]
[1731304079624,0.00371886,80868.0,80861.0,0.18415641]
[1731304080210,0.10264486,80868.0,80861.0,0.18415641]
[1731304080423,0.14874486,80868.0,80861.0,0.18415641]
[1731304080636,0.04981886,80868.0,80861.0,0.18415641]
[1731304080848,0.14874486,80868.0,80861.0,0.18415641]
[1731304081277,0.04981886,80868.0,80862.0,0.098932]
[1731304081450,0.04981886,80868.0,80861.0,0.18415641]
[1731304081669,0.14874486,80868.0,80861.0,0.28309041]
[1731304081853,0.14874486,80868.0,80862.0,0.098933]
[1731304082184,0.14874486,80868.0,80862.0,0.197866]
[1731304082185,0.04981886,80868.0,80862.0,0.197866]
[1731304082569,0.04981886,80868.0,80866.0,0.098928]
[1731304082828,0.46288707,80868.0,80859.0,0.000841]
[1731304083027,0.46288707,80868.0,80843.0,0.18415641]
[1731304083028,0.22767486,80844.0,80843.0,0.18415641]
[1731304083277,0.35361707,80844.0,80843.0,0.18415641]
[1731304083475,0.35361707,80844.0,80825.0,0.18415641]
[1731304083476,0.00371886,80835.0,80825.0,0.18415641]
[1731304083680,0.30472807,80835.0,80825.0,0.18415641]
[1731304083875,0.10269186,80830.0,80825.0,0.18415641]
[1731304084137,0.28253407,80830.0,80816.0,0.18415641]
[1731304084345,0.10270786,80817.0,80816.0,0.18415641]
[1731304084900,8.181e-05,80814.0,80809.0,0.098997]
[1731304085100,8.181e-05,80814.0,80812.0,0.18415641]
[1731304085305,8.181e-05,80814.0,80810.0,0.098997]
[1731304085506,0.09907481,80814.0,80808.0,0.098999]
[1731304085762,8.181e-05,80814.0,80806.0,0.0014]
[1731304085970,8.181e-05,80814.0,80809.0,0.098998]
[1731304086213,0.00363705,80810.0,80806.0,0.0014]
[1731304086426,0.00363705,80810.0,80808.0,0.098999]
[1731304086897,0.00363705,80810.0,80806.0,0.0014]
[1731304087103,0.00363705,80810.0,80809.0,0.098998]
[1731304087509,8.181e-05,80814.0,80806.0,0.0014]
[1731304087937,0.00363705,80811.0,80806.0,0.0014]
[1731304088142,8.181e-05,80814.0,80808.0,0.198]
[1731304088471,8.181e-05,80814.0,80813.0,0.098993]
[1731304088675,8.181e-05,80814.0,80810.0,0.197994]
[1731304088676,8.181e-05,80817.0,80810.0,0.197994]
[1731304088890,8.181e-05,80817.0,80816.0,0.197979]
[1731304089094,8.181e-05,80817.0,80810.0,0.197994]
[1731304089095,8.181e-05,80814.0,80812.0,0.19799]
[1731304089497,0.18415641,80828.0,80816.0,0.09899]
[1731304089498,8.181e-05,80817.0,80816.0,0.09899]
[1731304089676,0.00363705,80821.0,80814.0,0.197983]
[1731304089877,0.00363705,80821.0,80820.0,0.098985]
[1731304089878,8.181e-05,80821.0,80820.0,0.098985]
[1731304090133,0.23305641,80830.0,80820.0,0.098985]
[1731304090134,0.00371886,80823.0,80822.0,0.098982]
[1731304090376,8.181e-05,80823.0,80822.0,0.098982]
[1731304090517,8.181e-05,80825.0,80824.0,0.09898]
[1731304090936,0.00371886,80830.0,80829.0,0.098974]
[1731304093825,0.20167386,80827.0,80816.0,0.000842]
[1731304094013,0.00363705,80821.0,80816.0,0.000842]
[1731304094222,0.197957,80826.0,80816.0,0.000842]
[1731304094223,0.00363705,80817.0,80816.0,0.000842]
[1731304094456,0.09906981,80818.0,80816.0,0.000842]
[1731304094457,8.181e-05,80818.0,80816.0,0.000842]
[1731304094657,0.00371886,80818.0,80817.0,0.098989]
[1731304095219,8.181e-05,80818.0,80817.0,0.098989]
[1731304095376,0.00371886,80825.0,80824.0,0.09898]
[1731304096037,8.181e-05,80829.0,80818.0,0.002]
[1731304096241,0.00371886,80830.0,80829.0,0.098974]
[1731304096460,0.00371886,80834.0,80833.0,0.098969]
[1731304096721,8.181e-05,80836.0,80835.0,0.098967]
[1731304096873,0.00371886,80838.0,80837.0,0.098964]
[1731304097219,8.181e-05,80838.0,80837.0,0.098964]
[1731304097345,8.181e-05,80836.0,80833.0,0.197937]
[1731304097557,8.181e-05,80836.0,80835.0,0.098967]
[1731304097762,8.181e-05,80840.0,80835.0,0.00247399]
[1731304097968,8.181e-05,80840.0,80839.0,0.098962]
[1731304098174,0.00363705,80846.0,80845.0,0.098954]
[1731304098384,0.00371886,80848.0,80847.0,0.098952]
[1731304099319,0.00371886,80854.0,80853.0,0.098944]
[1731304100133,0.177537,80860.0,80838.0,0.197926]
[1731304100134,0.00363705,80847.0,80838.0,0.197926]
[1731304100320,8.181e-05,80842.0,80839.0,0.18415641]
[1731304100522,8.181e-05,80842.0,80841.0,0.098959]
[1731304101415,8.181e-05,80842.0,80841.0,0.088959]
[1731304101617,8.181e-05,80842.0,80841.0,0.098959]
[1731304102307,8.181e-05,80842.0,80839.0,0.00247382]
[1731304102538,0.00363705,80851.0,80839.0,0.18663023]
[1731304102751,0.26275641,80860.0,80853.0,0.098944]
[1731304102752,8.181e-05,80854.0,80853.0,0.098944]
[1731304102976,8.181e-05,80856.0,80855.0,0.098942]
[1731304103181,0.0467,80867.0,80842.0,0.00247348]
[1731304103182,8.181e-05,80861.0,80860.0,0.098936]
[1731304104258,0.0467,80867.0,80845.0,0.00136295]
[1731304104259,0.00371886,80864.0,80863.0,0.098932]
[1731304104461,8.181e-05,80864.0,80863.0,0.098932]
[1731304104679,0.00371886,80864.0,80863.0,0.098932]
[1731304104841,8.181e-05,80864.0,80863.0,0.098932]
[1731304105215,0.00371886,80864.0,80863.0,0.098932]
[1731304107937,8.181e-05,80864.0,80863.0,0.098932]
[1731304108139,0.08092105,80868.0,80867.0,0.098927]
[1731304108363,0.00176581,80868.0,80867.0,0.098927]
[1731304108571,0.001684,80868.0,80867.0,0.098927]
[1731304108829,0.001684,80868.0,80867.0,0.10139997]
[1731304109173,0.001684,80868.0,80867.0,0.098927]
[1731304112698,0.001684,80868.0,80867.0,0.100927]
[1731304112936,0.001684,80868.0,80867.0,0.10339989]
[1731304113350,0.001684,80868.0,80867.0,0.3293421]
[1731304113554,0.001684,80868.0,80867.0,0.32686921]
[1731304113754,0.001684,80868.0,80867.0,0.3317874]
[1731304114013,0.001684,80868.0,80867.0,0.60959821]
[1731304114591,0.001684,80868.0,80867.0,0.63259821]
[1731304117384,0.001684,80868.0,80867.0,0.63059821]
[1731304117589,0.001684,80868.0,80867.0,0.33115035]
[1731304117796,0.001684,80868.0,80867.0,0.32486921]
[1731304118025,0.001684,80868.0,80867.0,0.22486921]
[1731304118463,0.001684,80868.0,80867.0,0.098927]
[1731304122950,0.00363705,80855.0,80841.0,0.00491819]
[1731304123164,0.00363705,80854.0,80851.0,0.18415641]
[1731304123400,0.00363705,80854.0,80843.0,0.197912]
[1731304123844,0.00363705,80854.0,80850.0,0.098947]
[1731304124045,0.00363705,80854.0,80851.0,0.098946]
[1731304124466,0.00363705,80850.0,80845.0,0.098954]
[1731304124666,0.00363705,80850.0,80846.0,0.098952]
[1731304124667,0.0825,80849.0,80846.0,0.098952]
[1731304125112,0.0825,80849.0,80848.0,0.098951]
[1731304125352,0.0825,80849.0,80843.0,0.197914]
[1731304125568,0.0825,80849.0,80841.0,0.1]
[1731304125751,0.0825,80849.0,80846.0,0.098952]
[1731304126010,0.0825,80849.0,80848.0,0.098951]
[1731304127563,0.0825,80849.0,80840.0,0.1]
[1731304127788,0.0825,80849.0,80842.0,0.098957]
[1731304128011,0.08613705,80849.0,80831.0,0.1]
[1731304128211,0.00363705,80847.0,80843.0,0.098957]
[1731304128363,0.00363705,80847.0,80840.0,0.197921]
[1731304128559,0.00363705,80847.0,80844.0,0.098955]
[1731304128764,0.00363705,80847.0,80845.0,0.098954]
[1731304129103,0.00363705,80847.0,80846.0,0.098953]
[1731304129307,8.181e-05,80848.0,80840.0,0.197921]
[1731304129308,0.00363705,80846.0,80840.0,0.197921]
[1731304129540,0.00363705,80846.0,80844.0,0.098955]
[1731304129719,0.00363705,80846.0,80844.0,0.098954]
[1731304129914,0.00363705,80846.0,80845.0,0.098954]
[1731304130119,0.00371886,80846.0,80841.0,0.000842]
[1731304130398,0.00371886,80846.0,80841.0,0.099801]
[1731304130610,8.181e-05,80845.0,80843.0,0.098956]
[1731304130754,8.181e-05,80845.0,80841.0,0.000842]
[1731304130981,8.181e-05,80845.0,80844.0,0.098956]
[1731304132844,8.181e-05,80845.0,80841.0,0.0998]
[1731304133247,8.181e-05,80845.0,80844.0,0.098956]
[1731304135271,0.005,80861.0,80841.0,0.000842]
[1731304135272,0.00371886,80851.0,80843.0,0.00247373]
[1731304135478,0.00371886,80851.0,80850.0,0.098948]
[1731304135999,0.18415641,80856.0,80844.0,0.197912]
[1731304136000,8.181e-05,80845.0,80844.0,0.098956]
[1731304136202,8.181e-05,80845.0,80842.0,0.197916]
[1731304136525,8.181e-05,80845.0,80844.0,0.098956]
[1731304137096,8.181e-05,80845.0,80841.0,0.198761]
[1731304137299,8.181e-05,80845.0,80844.0,0.098956]
[1731304137985,0.00363705,80846.0,80841.0,0.000842]
[1731304137986,8.181e-05,80843.0,80841.0,0.000842]
[1731304138183,8.181e-05,80843.0,80842.0,0.098958]
[1731304138726,8.181e-05,80845.0,80842.0,0.197915]
[1731304138927,8.181e-05,80846.0,80845.0,0.098954]
[1731304140282,8.181e-05,80846.0,80843.0,0.197914]
[1731304140283,0.00363705,80842.0,80841.0,0.000842]
[1731304140708,0.30871907,80842.0,80841.0,0.000842]
[1731304141078,0.36581907,80842.0,80841.0,0.000842]
[1731304141224,0.36581907,80842.0,80821.0,0.18415641]
[1731304141225,0.23309186,80830.0,80821.0,0.18415641]
[1731304141442,0.26006107,80830.0,80821.0,0.18415641]
[1731304141600,0.26006107,80830.0,80821.0,0.38212341]
[1731304141857,0.35903407,80830.0,80823.0,0.098981]
[1731304142061,0.35903407,80830.0,80821.0,0.28313941]
[1731304142291,0.35903407,80830.0,80821.0,0.18415641]
[1731304142503,0.35903407,80830.0,80821.0,0.28313941]
[1731304143042,0.35903407,80830.0,80821.0,0.18415641]
[1731304143174,0.26006107,80830.0,80826.0,0.098977]
[1731304143386,0.26006107,80830.0,80821.0,0.38212341]
[1731304143583,0.35903407,80830.0,80821.0,0.38212341]
[1731304143791,0.35903407,80830.0,80821.0,0.18415641]
[1731304145195,0.26006107,80830.0,80821.0,0.38212341]
[1731304145348,0.35903407,80830.0,80821.0,0.18415641]
[1731304145570,0.35903407,80830.0,80816.0,0.000842]
[1731304145794,0.35903407,80830.0,80822.0,0.18415641]
[1731304146058,0.26006107,80830.0,80822.0,0.18415641]
[1731304146226,0.26006107,80830.0,80827.0,0.098976]
[1731304146635,0.35903407,80830.0,80821.0,0.098983]
[1731304146834,0.35903407,80830.0,80821.0,0.28313941]
[1731304147200,0.35903407,80830.0,80816.0,0.000842]
[1731304147416,0.36403407,80830.0,80816.0,0.000842]
[1731304148462,0.36403407,80830.0,80816.0,0.099832]
[1731304148680,0.36903407,80830.0,80816.0,0.099832]
[1731304148907,0.36903407,80830.0,80816.0,0.099831]
[1731304149038,0.36903407,80830.0,80816.0,0.000842]
[1731304149245,0.36903407,80830.0,80819.0,0.098986]
[1731304149448,0.36903407,80830.0,80816.0,0.19882]
[1731304149653,0.36903407,80830.0,80818.0,0.098987]
[1731304149851,0.36903407,80830.0,80817.0,0.197976]
[1731304150055,0.36903407,80830.0,80816.0,0.000842]
[1731304150505,0.36903407,80830.0,80816.0,0.19882]
[1731304150702,0.36903407,80830.0,80821.0,0.197968]
[1731304150967,0.36903407,80830.0,80822.0,0.18415641]
[1731304150968,0.36403407,80830.0,80822.0,0.18415641]
[1731304151301,0.36403407,80830.0,80822.0,0.28313841]
[1731304151660,0.36403407,80830.0,80822.0,0.18415641]
[1731304152115,0.36403407,80830.0,80823.0,0.09898]
[1731304152245,0.36403407,80830.0,80824.0,0.098979]
[1731304152456,0.26506107,80830.0,80822.0,0.18415641]
[1731304153158,0.36403407,80830.0,80822.0,0.18415641]
[1731304153366,0.36403407,80830.0,80822.0,0.28313841]
[1731304153572,0.36403407,80830.0,80822.0,0.18415641]
[1731304153787,0.36403407,80830.0,80817.0,0.098987]
[1731304153990,0.36403407,80830.0,80816.0,0.000842]
[1731304154195,0.36403407,80830.0,80821.0,0.098983]
[1731304154396,0.36403407,80830.0,80816.0,0.000842]
[1731304154605,0.36403407,80830.0,80818.0,0.098987]
[1731304154777,0.36403407,80830.0,80816.0,0.000842]
[1731304155406,0.36403407,80830.0,80820.0,0.098984]
[1731304155837,0.36903407,80830.0,80816.0,0.000842]
[1731304156639,0.46852458,80830.0,80816.0,0.000842]
[1731304158041,0.39203407,80830.0,80816.0,0.000842]
[1731304159095,0.39967289,80830.0,80816.0,0.000842]
[1731304163063,0.49967289,80830.0,80816.0,0.000842]
[1731304166166,0.47667289,80830.0,80821.0,0.18415641]
[1731304166406,0.21296107,80830.0,80821.0,0.18415641]
[1731304166625,0.21796107,80830.0,80821.0,0.38212241]
[1731304166850,0.31693407,80830.0,80821.0,0.098983]
[1731304167101,0.31693407,80830.0,80822.0,0.18415641]
[1731304167102,0.00371886,80830.0,80822.0,0.18415641]
[1731304167316,0.00371886,80830.0,80825.0,0.098978]
[1731304167487,0.22863407,80830.0,80820.0,0.098984]
[1731304167663,0.22863407,80830.0,80821.0,0.098983]
[1731304167832,0.22863407,80830.0,80821.0,0.18415641]